[Event "Torneo Nuevo Centro. Jornada 11"]
[Site "Chess.com"]
[Date "2020.08.28"]
[Round "6"]
[White "Bercaru, Vlad Ionut"]
[Black "Perez Garcia, Jose Miguel"]
[Result "0-1"]
[WhiteElo "1740"]
[BlackElo "2030"]
[TimeControl "180+2"]
[EndTime "11:33:20 PDT"]
[Termination "Victoria de PEREZOV69 por abandono"]

1. c4 {[%clk 0:03:01.9]} 1... Nf6 {[%clk 0:02:57.7]} 2. Nc3 {[%clk 0:03:01.1]}
2... e6 {[%clk 0:02:59.6]} 3. e4 {[%clk 0:02:57.7]} 3... d6 {[%clk 0:03:00.3]}
4. d4 {[%clk 0:02:56.7]} 4... Nbd7 {[%clk 0:02:53.7]} 5. Nf3 {[%clk 0:02:56.6]}
5... e5 {[%clk 0:02:53.3]} 6. dxe5 {[%clk 0:02:53.3]} 6... dxe5 {[%clk
0:02:53.6]} 7. Bg5 {[%clk 0:02:48.1]} 7... Bb4 {[%clk 0:02:52.8]} 8. Rc1 {[%clk
0:02:33.6]} 8... O-O {[%clk 0:02:50.6]} 9. a3 {[%clk 0:02:33]} 9... Bxc3+ {[%clk
0:02:50.4]} 10. Rxc3 {[%clk 0:02:32]} 10... h6 {[%clk 0:02:50.8]} 11. Bxf6
{[%clk 0:02:26.1]} 11... Qxf6 {[%clk 0:02:49.2]} 12. b4 {[%clk 0:02:16.8]} 12...
Nb6 {[%clk 0:02:45.7]} 13. c5 {[%clk 0:02:05.6]} 13... Nd7 {[%clk 0:02:45.8]}
14. Bb5 {[%clk 0:01:59.4]} 14... c6 {[%clk 0:02:46.3]} 15. Bc4 {[%clk
0:01:57.4]} 15... Rd8 {[%clk 0:02:47.5]} 16. Rd3 {[%clk 0:01:44.7]} 16... a5
{[%clk 0:02:44.3]} 17. Rd6 {[%clk 0:01:42.6]} 17... Qe7 {[%clk 0:02:42.6]} 18.
O-O {[%clk 0:01:29.4]} 18... axb4 {[%clk 0:02:43.2]} 19. axb4 {[%clk 0:01:29.8]}
19... b6 {[%clk 0:02:44.5]} 20. Qd3 {[%clk 0:01:20.5]} 20... bxc5 {[%clk
0:02:41.7]} 21. bxc5 {[%clk 0:01:19.2]} 21... Ra7 {[%clk 0:02:28.8]} 22. Rd1
{[%clk 0:01:14.9]} 22... Rc7 {[%clk 0:02:29.5]} 23. Qc3 {[%clk 0:01:07.9]} 23...
Bb7 {[%clk 0:02:25.4]} 24. Nxe5 {[%clk 0:01:05.4]} 24... Nxe5 {[%clk 0:02:08]}
25. Rxd8+ {[%clk 0:01:05.3]} 25... Kh7 {[%clk 0:02:08.4]} 26. Bb3 {[%clk
0:00:55.3]} 26... Rd7 {[%clk 0:01:54.2]} 27. R8xd7 {[%clk 0:00:53.8]} 27... Nxd7
{[%clk 0:01:54]} 28. Bc2 {[%clk 0:00:49.9]} 28... Qxc5 {[%clk 0:01:46.1]} 29.
e5+ {[%clk 0:00:44.4]} 29... g6 {[%clk 0:01:40.5]} 30. Qb3 {[%clk 0:00:30.6]}
30... Nxe5 {[%clk 0:01:35]} 31. Qxb7 {[%clk 0:00:21.5]} 31... Qxc2 {[%clk
0:01:34.3]} 32. Qb1 {[%clk 0:00:21.5]} 32... Qxb1 {[%clk 0:01:34.3]} 33. Rxb1
{[%clk 0:00:22.1]} 33... Kg7 {[%clk 0:01:32.5]} 34. Rc1 {[%clk 0:00:22.1]} 34...
g5 {[%clk 0:01:31.4]} 35. g3 {[%clk 0:00:21.3]} 35... g4 {[%clk 0:01:31.7]} 36.
Kg2 {[%clk 0:00:20.3]} 36... h5 {[%clk 0:01:32.4]} 37. h3 {[%clk 0:00:19.7]}
37... f5 {[%clk 0:01:30.4]} 38. Rc5 {[%clk 0:00:19]} 38... Kf6 {[%clk
0:01:31.1]} 39. hxg4 {[%clk 0:00:19.3]} 39... hxg4 {[%clk 0:01:28]} 40. Kf1
{[%clk 0:00:19.4]} 40... Ke6 {[%clk 0:01:25.3]} 41. Ke2 {[%clk 0:00:19.6]} 41...
Kd6 {[%clk 0:01:25.2]} 42. Rc2 {[%clk 0:00:19]} 42... c5 {[%clk 0:01:25.8]} 43.
Rd2+ {[%clk 0:00:19]} 43... Ke6 {[%clk 0:01:26.3]} 44. Rc2 {[%clk 0:00:17.5]}
44... Kd6 {[%clk 0:01:26.7]} 45. Ke3 {[%clk 0:00:17.4]} 45... Ng6 {[%clk
0:01:21]} 46. Rd2+ {[%clk 0:00:17]} 46... Ke5 {[%clk 0:01:21.9]} 47. Rc2 {[%clk
0:00:16.4]} 47... Kd5 {[%clk 0:01:22.3]} 48. Rd2+ {[%clk 0:00:14.5]} 48... Kc4
{[%clk 0:01:23.1]} 49. Rd6 {[%clk 0:00:13.7]} 49... Ne5 {[%clk 0:01:23.1]} 50.
Kf4 {[%clk 0:00:13.2]} 50... Nd3+ {[%clk 0:01:23.3]} 51. Kxf5 {[%clk 0:00:13.4]}
51... Nxf2 {[%clk 0:01:24.3]} 52. Rf6 {[%clk 0:00:13]} 52... Kd3 {[%clk
0:01:21.1]} 53. Kg5 {[%clk 0:00:13]} 53... Ne4+ {[%clk 0:01:21.3]} 54. Kxg4
{[%clk 0:00:07.5]} 54... Nxf6+ {[%clk 0:01:22.1]} 55. Kf5 {[%clk 0:00:08.9]}
55... Ne4 {[%clk 0:01:23]} 56. g4 {[%clk 0:00:09.3]} 56... c4 {[%clk 0:01:24.9]}
57. g5 {[%clk 0:00:09.2]} 57... Nxg5 {[%clk 0:01:25.6]} 58. Kxg5 {[%clk
0:00:10.6]} 58... c3 {[%clk 0:01:27.5]} 0

[Event "Torneo Nuevo Centro. Jornada 11"]
[Site "Chess.com"]
[Date "2020.08.28"]
[Round "6"]
[White "Yuste Valenzuela, Alejandro"]
[Black "Birnoveanu, Petru"]
[Result "1-0"]
[WhiteElo "1884"]
[BlackElo "1712"]
[TimeControl "180+2"]
[EndTime "11:33:32 PDT"]
[Termination "Victoria de alejandrito290 por tiempo"]

1. e4 {[%clk 0:03:01.9]} 1... Nc6 {[%clk 0:02:59.4]} 2. Nf3 {[%clk 0:03:01.3]}
2... e5 {[%clk 0:02:59.1]} 3. d4 {[%clk 0:03:01.8]} 3... exd4 {[%clk 0:02:56.6]}
4. Bc4 {[%clk 0:03:02.2]} 4... Bc5 {[%clk 0:02:55.4]} 5. c3 {[%clk 0:03:02.3]}
5... Qf6 {[%clk 0:02:40.5]} 6. O-O {[%clk 0:02:59.6]} 6... d6 {[%clk 0:02:23.5]}
7. Bb5 {[%clk 0:01:41.7]} 7... Bg4 {[%clk 0:02:10.7]} 8. Bxc6+ {[%clk
0:01:38.4]} 8... bxc6 {[%clk 0:02:10.4]} 9. cxd4 {[%clk 0:01:21.4]} 9... Bxf3
{[%clk 0:02:09.5]} 10. Qxf3 {[%clk 0:01:17.1]} 10... Qxf3 {[%clk 0:02:09.3]} 11.
gxf3 {[%clk 0:01:19]} 11... Bxd4 {[%clk 0:02:09.8]} 12. Nc3 {[%clk 0:01:19.9]}
12... Bxc3 {[%clk 0:02:09.7]} 13. bxc3 {[%clk 0:01:21.8]} 13... Ne7 {[%clk
0:02:09.7]} 14. Be3 {[%clk 0:01:22.5]} 14... Kd7 {[%clk 0:02:01.9]} 15. Rab1
{[%clk 0:01:17]} 15... a5 {[%clk 0:01:52.7]} 16. a4 {[%clk 0:01:16.8]} 16... c5
{[%clk 0:01:52.1]} 17. Rb5 {[%clk 0:01:06.5]} 17... Rhb8 {[%clk 0:01:48.2]} 18.
Rfb1 {[%clk 0:01:06.3]} 18... Rxb5 {[%clk 0:01:47]} 19. Rxb5 {[%clk 0:01:06.6]}
19... Nc6 {[%clk 0:01:42.6]} 20. f4 {[%clk 0:00:54.7]} 20... Rb8 {[%clk
0:01:41.5]} 21. Rxb8 {[%clk 0:00:54.7]} 21... Nxb8 {[%clk 0:01:41.6]} 22. Kf1
{[%clk 0:00:54.8]} 22... g6 {[%clk 0:01:38.9]} 23. Ke2 {[%clk 0:00:55.2]} 23...
f5 {[%clk 0:01:39.4]} 24. f3 {[%clk 0:00:55.6]} 24... Nc6 {[%clk 0:01:27]} 25.
Kd3 {[%clk 0:00:53.9]} 25... Nd8 {[%clk 0:01:23]} 26. Bd2 {[%clk 0:00:47.9]}
26... Kc6 {[%clk 0:01:16.4]} 27. Kc4 {[%clk 0:00:44.3]} 27... Nf7 {[%clk
0:00:55.3]} 28. h4 {[%clk 0:00:35.8]} 28... h5 {[%clk 0:00:54.2]} 29. Be3 {[%clk
0:00:33.3]} 29... Nd8 {[%clk 0:00:48.1]} 30. Bd2 {[%clk 0:00:33.8]} 30... Ne6
{[%clk 0:00:45.2]} 31. Be3 {[%clk 0:00:31.7]} 31... Nf8 {[%clk 0:00:43.7]} 32.
Bd2 {[%clk 0:00:16.5]} 32... Nd7 {[%clk 0:00:43.4]} 33. Be3 {[%clk 0:00:15.4]}
33... Nb6+ {[%clk 0:00:39.5]} 34. Kb3 {[%clk 0:00:14.3]} 34... Kd7 {[%clk
0:00:28.3]} 35. Bd2 {[%clk 0:00:12.6]} 35... c6 {[%clk 0:00:28.3]} 36. Be3
{[%clk 0:00:13.2]} 36... Ke6 {[%clk 0:00:21.7]} 37. Bf2 {[%clk 0:00:13.7]} 37...
fxe4 {[%clk 0:00:18.6]} 38. fxe4 {[%clk 0:00:13.3]} 38... Nd7 {[%clk 0:00:11.1]}
39. Kc4 {[%clk 0:00:13.8]} 39... Nf6 {[%clk 0:00:10.1]} 40. Kd3 {[%clk
0:00:14.7]} 40... Ng4 {[%clk 0:00:04.5]} 41. Bg1 {[%clk 0:00:15.3]} 41... d5
{[%clk 0:00:03.3]} 42. Bxc5 {[%clk 0:00:13.9]} 1

[Event "Torneo Nuevo Centro. Jornada 11"]
[Site "Chess.com"]
[Date "2020.08.28"]
[Round "6"]
[White "Grigorev, Artur "]
[Black "Gutierrez Lacambra, Jose Antonio"]
[Result "0-1"]
[WhiteElo "915"]
[BlackElo "1366"]
[TimeControl "180+2"]
[EndTime "11:33:37 PDT"]
[Termination "Victoria de sygm2012 por tiempo"]

1. e4 {[%clk 0:03:01.9]} 1... b6 {[%clk 0:02:56]} 2. d4 {[%clk 0:03:01.2]} 2...
Bb7 {[%clk 0:02:56.8]} 3. Nc3 {[%clk 0:03:00.3]} 3... g6 {[%clk 0:02:57.6]} 4.
Nf3 {[%clk 0:03:00.8]} 4... Bg7 {[%clk 0:02:58.4]} 5. Bc4 {[%clk 0:03:00.9]}
5... e6 {[%clk 0:02:58.5]} 6. Bf4 {[%clk 0:03:01.6]} 6... d6 {[%clk 0:02:58.9]}
7. O-O {[%clk 0:02:56.2]} 7... Ne7 {[%clk 0:02:59.7]} 8. b4 {[%clk 0:02:46.1]}
8... O-O {[%clk 0:02:47.4]} 9. Rb1 {[%clk 0:02:45.7]} 9... f5 {[%clk 0:02:34]}
10. e5 {[%clk 0:02:29.2]} 10... dxe5 {[%clk 0:02:29.8]} 11. dxe5 {[%clk
0:02:29.2]} 11... Nd5 {[%clk 0:01:49.9]} 12. Nxd5 {[%clk 0:02:25.2]} 12... Bxd5
{[%clk 0:01:46.6]} 13. Bxd5 {[%clk 0:02:25.8]} 13... Qxd5 {[%clk 0:01:46.6]} 14.
Qxd5 {[%clk 0:02:24.2]} 14... exd5 {[%clk 0:01:47.3]} 15. Rbd1 {[%clk
0:02:06.5]} 15... c6 {[%clk 0:01:27.3]} 16. a4 {[%clk 0:01:56.2]} 16... Na6
{[%clk 0:01:16.3]} 17. b5 {[%clk 0:01:55.2]} 17... cxb5 {[%clk 0:01:02.9]} 18.
axb5 {[%clk 0:01:55.9]} 18... Nb4 {[%clk 0:01:03.5]} 19. c3 {[%clk 0:01:55.6]}
19... Na2 {[%clk 0:00:55.9]} 20. Rxd5 {[%clk 0:01:39.4]} 20... Nxc3 {[%clk
0:00:55.5]} 21. Rd3 {[%clk 0:01:37.5]} 21... Nxb5 {[%clk 0:00:54.8]} 22. Ng5
{[%clk 0:01:35.8]} 22... Rfe8 {[%clk 0:00:45.8]} 23. Rh3 {[%clk 0:01:34.2]}
23... h6 {[%clk 0:00:43.9]} 24. Nf3 {[%clk 0:01:22.3]} 24... g5 {[%clk
0:00:44.7]} 25. Bd2 {[%clk 0:01:08.8]} 25... g4 {[%clk 0:00:43.7]} 26. Rg3
{[%clk 0:00:32.9]} 26... gxf3 {[%clk 0:00:40.6]} 27. Bxh6 {[%clk 0:00:31.5]}
27... Re7 {[%clk 0:00:40.1]} 28. gxf3 {[%clk 0:00:27.7]} 28... Kh7 {[%clk
0:00:40.3]} 29. Bf4 {[%clk 0:00:21.4]} 29... Rae8 {[%clk 0:00:32.2]} 30. Rh3+
{[%clk 0:00:21.3]} 30... Kg8 {[%clk 0:00:29]} 31. Rd1 {[%clk 0:00:21.4]} 31...
Bxe5 {[%clk 0:00:22.4]} 32. Bg5 {[%clk 0:00:20]} 32... Rh7 {[%clk 0:00:18.1]}
33. Rxh7 {[%clk 0:00:16.4]} 33... Kxh7 {[%clk 0:00:18.8]} 34. Rd7+ {[%clk
0:00:13.9]} 34... Kg6 {[%clk 0:00:18.5]} 35. Be3 {[%clk 0:00:09]} 35... Bxh2+
{[%clk 0:00:14.8]} 36. Kxh2 {[%clk 0:00:08.5]} 36... Nc3 {[%clk 0:00:11.5]} 37.
Rxa7 {[%clk 0:00:07.4]} 37... Rh8+ {[%clk 0:00:12.5]} 38. Kg1 {[%clk 0:00:06.6]}
38... Ne2+ {[%clk 0:00:12.4]} 39. Kg2 {[%clk 0:00:07]} 39... Nc3 {[%clk
0:00:11.1]} 40. Bxb6 {[%clk 0:00:06]} 40... Nd5 {[%clk 0:00:10.4]} 41. Bd4
{[%clk 0:00:04]} 41... Nf4+ {[%clk 0:00:10.5]} 42. Kg3 {[%clk 0:00:03.2]} 42...
Rh3+ {[%clk 0:00:10.9]} 0

[Event "Torneo Nuevo Centro. Jornada 11"]
[Site "Chess.com"]
[Date "2020.08.28"]
[Round "6"]
[White "Garcia, Jhoel"]
[Black "Martin Ayala, David"]
[Result "1-0"]
[WhiteElo "2381"]
[BlackElo "1886"]
[TimeControl "180+2"]
[EndTime "11:33:56 PDT"]
[Termination "Victoria de shoels por tiempo"]

1. g3 {[%clk 0:03:01.9]} 1... g6 {[%clk 0:02:57.9]} 2. Bg2 {[%clk 0:03:03]} 2...
Bg7 {[%clk 0:02:59.8]} 3. Nf3 {[%clk 0:03:04.4]} 3... c6 {[%clk 0:03:00.7]} 4.
O-O {[%clk 0:03:05.9]} 4... d6 {[%clk 0:03:01.6]} 5. d4 {[%clk 0:03:07.3]} 5...
Nf6 {[%clk 0:03:00.7]} 6. c4 {[%clk 0:03:08.7]} 6... O-O {[%clk 0:03:01.1]} 7.
Nc3 {[%clk 0:03:10.2]} 7... Re8 {[%clk 0:03:01.5]} 8. e4 {[%clk 0:03:11.6]} 8...
Bg4 {[%clk 0:02:53.5]} 9. Qb3 {[%clk 0:02:54.3]} 9... Bxf3 {[%clk 0:02:48.6]}
10. Bxf3 {[%clk 0:02:53.6]} 10... Qd7 {[%clk 0:02:41.8]} 11. e5 {[%clk 0:02:49]}
11... Ng4 {[%clk 0:02:37.5]} 12. e6 {[%clk 0:01:47.6]} 12... Qxe6 {[%clk
0:02:33.9]} 13. Qxb7 {[%clk 0:01:47.2]} 13... Nd7 {[%clk 0:02:20.3]} 14. Bxc6
{[%clk 0:01:48.2]} 14... Rad8 {[%clk 0:02:10.4]} 15. Bg5 {[%clk 0:01:44.4]}
15... Bxd4 {[%clk 0:02:03.9]} 16. Rae1 {[%clk 0:01:41.1]} 16... Bxf2+ {[%clk
0:02:02.3]} 17. Kg2 {[%clk 0:00:21.6]} 17... Bxe1 {[%clk 0:02:00.5]} 18. Bd5
{[%clk 0:00:22]} 18... Ne3+ {[%clk 0:01:55.7]} 19. Bxe3 {[%clk 0:00:22.9]} 19...
Qxe3 {[%clk 0:01:55.9]} 20. Bxf7+ {[%clk 0:00:24.8]} 20... Kf8 {[%clk
0:01:23.9]} 21. Bxg6+ {[%clk 0:00:20.3]} 21... Nf6 {[%clk 0:01:21]} 22. Rxf6+
{[%clk 0:00:21.4]} 22... Kg7 {[%clk 0:01:19.4]} 23. Bxe8 {[%clk 0:00:19]} 23...
Rxe8 {[%clk 0:01:03.8]} 24. Rf3 {[%clk 0:00:19.2]} 24... Qd2+ {[%clk 0:01:01.9]}
25. Kh1 {[%clk 0:00:18.3]} 25... Bf2 {[%clk 0:00:56.6]} 26. Qe4 {[%clk
0:00:17.7]} 26... Qe1+ {[%clk 0:00:47.8]} 27. Qxe1 {[%clk 0:00:18.1]} 27... Bxe1
{[%clk 0:00:49.7]} 28. Ne4 {[%clk 0:00:18.3]} 28... Ba5 {[%clk 0:00:35.3]} 29.
a3 {[%clk 0:00:18.8]} 29... Rc8 {[%clk 0:00:32.2]} 30. b3 {[%clk 0:00:19.5]}
30... Bb6 {[%clk 0:00:28.4]} 31. h4 {[%clk 0:00:19.5]} 31... Bd4 {[%clk
0:00:20]} 32. Ng5 {[%clk 0:00:19.9]} 32... Be5 {[%clk 0:00:17.9]} 33. Rf7+
{[%clk 0:00:19.3]} 33... Kg6 {[%clk 0:00:18.3]} 34. Rxe7 {[%clk 0:00:19.3]}
34... Rb8 {[%clk 0:00:18.3]} 35. b4 {[%clk 0:00:19.8]} 35... Kf5 {[%clk
0:00:19]} 36. Nf7 {[%clk 0:00:18.2]} 36... Bxg3 {[%clk 0:00:19]} 37. h5 {[%clk
0:00:19.1]} 37... Kg4 {[%clk 0:00:19.5]} 38. Kg2 {[%clk 0:00:17.6]} 38... Bf4
{[%clk 0:00:19]} 39. Re4 {[%clk 0:00:17.8]} 39... Kf5 {[%clk 0:00:18.3]} 40. Rd4
{[%clk 0:00:18.5]} 40... Rg8+ {[%clk 0:00:18.6]} 41. Kf2 {[%clk 0:00:18.1]}
41... Re8 {[%clk 0:00:16.8]} 42. Nxd6+ {[%clk 0:00:18.1]} 42... Bxd6 {[%clk
0:00:17.8]} 43. Rxd6 {[%clk 0:00:19.6]} 43... Kg5 {[%clk 0:00:19.7]} 44. Rd5+
{[%clk 0:00:20.7]} 44... Kf4 {[%clk 0:00:18.4]} 45. c5 {[%clk 0:00:22.2]} 45...
Re4 {[%clk 0:00:19.4]} 46. c6 {[%clk 0:00:22.3]} 46... Rc4 {[%clk 0:00:20.3]}
47. Rc5 {[%clk 0:00:23.9]} 47... Rd4 {[%clk 0:00:16.4]} 48. c7 {[%clk
0:00:24.5]} 48... Rd2+ {[%clk 0:00:18.3]} 49. Ke1 {[%clk 0:00:26]} 49... Rh2
{[%clk 0:00:18]} 50. c8=Q {[%clk 0:00:25.9]} 50... Ke3 {[%clk 0:00:19.9]} 51.
Re5+ {[%clk 0:00:26.5]} 1

[Event "Torneo Nuevo Centro. Jornada 11"]
[Site "Chess.com"]
[Date "2020.08.28"]
[Round "6"]
[White "Sos Andreu, Eric"]
[Black "Escalona Moncholi, Felix"]
[Result "1-0"]
[WhiteElo "2515"]
[BlackElo "2111"]
[TimeControl "180+2"]
[EndTime "11:34:03 PDT"]
[Termination "Victoria de ericovski por abandono"]

1. d4 {[%clk 0:03:01.2]} 1... d5 {[%clk 0:03:00.9]} 2. c4 {[%clk 0:03:02.8]}
2... dxc4 {[%clk 0:03:02.8]} 3. e3 {[%clk 0:03:03.6]} 3... Nf6 {[%clk
0:03:03.7]} 4. Bxc4 {[%clk 0:03:04.7]} 4... c5 {[%clk 0:03:05.3]} 5. Nf3 {[%clk
0:03:06]} 5... e6 {[%clk 0:03:06.7]} 6. O-O {[%clk 0:03:06.9]} 6... a6 {[%clk
0:03:08.1]} 7. dxc5 {[%clk 0:03:07.3]} 7... Bxc5 {[%clk 0:03:07.2]} 8. Qxd8+
{[%clk 0:03:06.8]} 8... Kxd8 {[%clk 0:03:09.1]} 9. b3 {[%clk 0:03:05.3]} 9...
Ke7 {[%clk 0:03:08.8]} 10. Bb2 {[%clk 0:03:06.5]} 10... Nbd7 {[%clk 0:03:07.9]}
11. Rd1 {[%clk 0:03:05]} 11... b5 {[%clk 0:03:06.9]} 12. Be2 {[%clk 0:03:05.6]}
12... Bb7 {[%clk 0:03:07.5]} 13. Nbd2 {[%clk 0:03:07.1]} 13... Rac8 {[%clk
0:03:07.2]} 14. a4 {[%clk 0:03:06.6]} 14... b4 {[%clk 0:02:55.9]} 15. Nc4 {[%clk
0:03:02]} 15... Bd5 {[%clk 0:02:19.7]} 16. Rac1 {[%clk 0:02:51.4]} 16... h6
{[%clk 0:02:17.8]} 17. Ncd2 {[%clk 0:02:47.4]} 17... Bb7 {[%clk 0:02:14.3]} 18.
Nc4 {[%clk 0:02:47.9]} 18... Bd5 {[%clk 0:02:14.8]} 19. Nfd2 {[%clk 0:02:47.2]}
19... Rhd8 {[%clk 0:01:49.4]} 20. h3 {[%clk 0:02:28.8]} 20... g5 {[%clk
0:01:46.2]} 21. Bf1 {[%clk 0:02:12.5]} 21... Ne4 {[%clk 0:01:28]} 22. Nxe4
{[%clk 0:02:02.6]} 22... Bxe4 {[%clk 0:01:29.9]} 23. Nd2 {[%clk 0:02:02.1]}
23... Bb7 {[%clk 0:01:30.2]} 24. Be2 {[%clk 0:01:59.7]} 24... Nf6 {[%clk
0:01:18.5]} 25. Nc4 {[%clk 0:01:57.2]} 25... Nd7 {[%clk 0:01:15.7]} 26. Na5
{[%clk 0:01:52.5]} 26... Bd5 {[%clk 0:00:57.3]} 27. Bxa6 {[%clk 0:01:31.9]}
27... Ra8 {[%clk 0:00:56.6]} 28. Rxd5 {[%clk 0:01:32.7]} 28... exd5 {[%clk
0:00:26.6]} 29. Nc6+ {[%clk 0:01:33.5]} 29... Ke8 {[%clk 0:00:21.5]} 30. Bb7
{[%clk 0:01:20.3]} 30... Rac8 {[%clk 0:00:13.8]} 31. Nxd8 {[%clk 0:01:17.5]}
31... Rxd8 {[%clk 0:00:11.1]} 32. Bc6 {[%clk 0:01:18.5]} 32... Bb6 {[%clk
0:00:09.2]} 33. Bxd5 {[%clk 0:01:19.7]} 33... Ke7 {[%clk 0:00:09.8]} 34. Bc4
{[%clk 0:01:17.1]} 34... Nc5 {[%clk 0:00:10.8]} 35. Bd4 {[%clk 0:01:15.5]} 35...
f5 {[%clk 0:00:06.2]} 36. a5 {[%clk 0:01:16.2]} 36... Ba7 {[%clk 0:00:07.3]} 37.
Bf1 {[%clk 0:01:13.4]} 37... Rc8 {[%clk 0:00:05.4]} 38. a6 {[%clk 0:01:10.7]}
38... Kd6 {[%clk 0:00:05.9]} 39. Bxc5+ {[%clk 0:01:09.1]} 39... Bxc5 {[%clk
0:00:07.8]} 40. Rd1+ {[%clk 0:01:03]} 40... Kc7 {[%clk 0:00:06.7]} 41. Bc4
{[%clk 0:01:03.3]} 41... Rd8 {[%clk 0:00:07]} 42. Rxd8 {[%clk 0:01:00.4]} 42...
Kxd8 {[%clk 0:00:08.9]} 43. g4 {[%clk 0:01:00.7]} 43... fxg4 {[%clk 0:00:09.3]}
44. hxg4 {[%clk 0:01:01.9]} 44... Ke7 {[%clk 0:00:11]} 45. Kg2 {[%clk
0:01:02.9]} 45... Kd6 {[%clk 0:00:12.3]} 46. Kf3 {[%clk 0:01:01.2]} 46... Ke5
{[%clk 0:00:13.3]} 47. Kg3 {[%clk 0:01:01.2]} 47... Ke4 {[%clk 0:00:12.5]} 48.
Kg2 {[%clk 0:00:58.5]} 48... Ba7 {[%clk 0:00:12.1]} 49. Kf1 {[%clk 0:00:59.7]}
49... Bb6 {[%clk 0:00:12.5]} 50. Ke2 {[%clk 0:01:00.7]} 50... Ba7 {[%clk
0:00:13.5]} 51. f3+ {[%clk 0:01:01.8]} 51... Ke5 {[%clk 0:00:14.8]} 52. Kd3
{[%clk 0:00:57]} 52... Bb6 {[%clk 0:00:15.5]} 53. Bb5 {[%clk 0:00:56.9]} 53...
Ba7 {[%clk 0:00:13.8]} 54. Bc6 {[%clk 0:00:42.4]} 54... Bb6 {[%clk 0:00:13.2]}
55. e4 {[%clk 0:00:34]} 55... Kf4 {[%clk 0:00:07.8]} 56. Kc4 {[%clk 0:00:34.9]}
56... Kxf3 {[%clk 0:00:07.2]} 57. e5+ {[%clk 0:00:36.3]} 57... Kxg4 {[%clk
0:00:08]} 58. e6 {[%clk 0:00:37.9]} 58... h5 {[%clk 0:00:08.8]} 59. e7 {[%clk
0:00:38.9]} 1

[Event "Torneo Nuevo Centro. Jornada 11"]
[Site "Chess.com"]
[Date "2020.08.28"]
[Round "6"]
[White "Conejero Martínez, Víctor"]
[Black "Bascuñana Sánchez, Pablo"]
[Result "0-1"]
[WhiteElo "1367"]
[BlackElo "1675"]
[TimeControl "180+2"]
[EndTime "11:34:21 PDT"]
[Termination "Victoria de Pabasan2010 por tiempo"]

1. d4 {[%clk 0:03:01.9]} 1... Nf6 {[%clk 0:02:59.2]} 2. c4 {[%clk 0:02:59.8]}
2... g6 {[%clk 0:02:59.9]} 3. Nc3 {[%clk 0:03:00.8]} 3... Bg7 {[%clk 0:03:00.5]}
4. e3 {[%clk 0:02:54.8]} 4... d6 {[%clk 0:03:01]} 5. Bd3 {[%clk 0:02:52.5]} 5...
O-O {[%clk 0:02:56.3]} 6. Bd2 {[%clk 0:02:52.5]} 6... c5 {[%clk 0:02:54.6]} 7.
Qc1 {[%clk 0:02:52]} 7... cxd4 {[%clk 0:02:53.8]} 8. exd4 {[%clk 0:02:52.4]}
8... Nc6 {[%clk 0:02:53.2]} 9. Nf3 {[%clk 0:02:51.2]} 9... Bg4 {[%clk
0:02:51.9]} 10. d5 {[%clk 0:02:48.9]} 10... Bxf3 {[%clk 0:02:46.8]} 11. gxf3
{[%clk 0:02:42.9]} 11... Ne5 {[%clk 0:02:44.6]} 12. Be2 {[%clk 0:02:39.7]} 12...
Rc8 {[%clk 0:02:42.9]} 13. b3 {[%clk 0:02:39.6]} 13... e6 {[%clk 0:02:31.6]} 14.
dxe6 {[%clk 0:02:36.2]} 14... fxe6 {[%clk 0:02:31.5]} 15. Bh6 {[%clk 0:02:36.2]}
15... Bxh6 {[%clk 0:02:16.1]} 16. Qxh6 {[%clk 0:02:35.7]} 16... Qa5 {[%clk
0:02:16.3]} 17. Kd2 {[%clk 0:02:30.3]} 17... b5 {[%clk 0:02:09.8]} 18. f4 {[%clk
0:02:21.9]} 18... Nf7 {[%clk 0:02:00.9]} 19. Qh3 {[%clk 0:02:06.1]} 19... bxc4
{[%clk 0:01:58.5]} 20. Bxc4 {[%clk 0:02:02.9]} 20... d5 {[%clk 0:01:58.2]} 21.
Qh4 {[%clk 0:01:30.6]} 21... Ne4+ {[%clk 0:01:54.9]} 22. Ke3 {[%clk 0:00:57.8]}
22... Qxc3+ {[%clk 0:01:53.3]} 23. Bd3 {[%clk 0:00:51.1]} 23... Qd2+ {[%clk
0:01:30.6]} 24. Kd4 {[%clk 0:00:45.5]} 24... Qxf2+ {[%clk 0:01:19.5]} 25. Qxf2
{[%clk 0:00:38.8]} 25... Nxf2 {[%clk 0:01:20]} 26. Rhg1 {[%clk 0:00:33.7]} 26...
Nxd3 {[%clk 0:01:19.7]} 27. Kxd3 {[%clk 0:00:34.3]} 27... Nd6 {[%clk 0:01:20.2]}
28. h4 {[%clk 0:00:34.5]} 28... Ne4 {[%clk 0:01:19.5]} 29. h5 {[%clk 0:00:33.1]}
29... Rc3+ {[%clk 0:01:18.6]} 30. Kd4 {[%clk 0:00:32.8]} 30... Rxf4 {[%clk
0:01:04.9]} 31. hxg6 {[%clk 0:00:30.9]} 31... hxg6 {[%clk 0:01:00.3]} 32. Rxg6+
{[%clk 0:00:30.7]} 32... Kf7 {[%clk 0:01:01.2]} 33. Rh6 {[%clk 0:00:25.4]} 33...
Rc8 {[%clk 0:00:55.9]} 34. Rh7+ {[%clk 0:00:25.4]} 34... Kf6 {[%clk 0:00:50.2]}
35. Rxa7 {[%clk 0:00:20.4]} 35... Nf2+ {[%clk 0:00:40.3]} 36. Ke3 {[%clk
0:00:20.2]} 36... Rf5 {[%clk 0:00:34.4]} 37. Rf1 {[%clk 0:00:20.1]} 37... Ng4+
{[%clk 0:00:34.2]} 38. Ke2 {[%clk 0:00:20.3]} 38... Rxf1 {[%clk 0:00:34.2]} 39.
Kxf1 {[%clk 0:00:21.3]} 39... Ke5 {[%clk 0:00:29]} 40. Ke2 {[%clk 0:00:21.4]}
40... d4 {[%clk 0:00:29.5]} 41. Kd3 {[%clk 0:00:21.4]} 41... Nf2+ {[%clk
0:00:29.8]} 42. Ke2 {[%clk 0:00:21.6]} 42... Ne4 {[%clk 0:00:30.1]} 43. Ra6
{[%clk 0:00:20.7]} 43... Nc3+ {[%clk 0:00:27.2]} 44. Kd3 {[%clk 0:00:19.7]}
44... Rd8 {[%clk 0:00:21.4]} 45. Ra5+ {[%clk 0:00:17.5]} 45... Kf4 {[%clk
0:00:21.2]} 46. b4 {[%clk 0:00:16]} 46... e5 {[%clk 0:00:20.6]} 47. a3 {[%clk
0:00:13.3]} 47... e4+ {[%clk 0:00:20.8]} 48. Kc4 {[%clk 0:00:14.2]} 48... e3
{[%clk 0:00:19.5]} 49. Kd3 {[%clk 0:00:07.7]} 49... e2 {[%clk 0:00:19.2]} 50.
Kd2 {[%clk 0:00:08.5]} 50... Re8 {[%clk 0:00:16.8]} 51. Ke1 {[%clk 0:00:08.7]}
51... Ne4 {[%clk 0:00:14.9]} 52. Ra7 {[%clk 0:00:05.5]} 52... d3 {[%clk
0:00:12.1]} 53. Rf7+ {[%clk 0:00:03.5]} 53... Ke3 {[%clk 0:00:11.6]} 0